fUSD/lending_fUSD_20240212
["ID","MTS","AMOUNT","RATE_DAILY","PERIOD"]
[313846268,1707750641323,-500.0,0.00022799,2]
[313846269,1707750641332,-500.0,0.00022799,2]
[313846270,1707750641341,-500.0,0.00022799,2]
[313846271,1707750641349,-500.0,0.00022799,2]
[313846272,1707750641358,-500.0,0.00022799,2]
[313846273,1707750641367,-500.0,0.00022799,2]
[313846274,1707750641376,-500.0,0.00022799,2]
[313846275,1707750641386,-500.0,0.00022799,2]
[313846276,1707750641396,-500.0,0.00022799,2]
[313846277,1707750641405,-500.0,0.00022799,2]
[313846278,1707750641414,-500.0,0.00022799,2]
[313846279,1707750641424,-500.0,0.00022799,2]
[313846280,1707750641433,-500.0,0.00022799,2]
[313846281,1707750641442,-500.0,0.00022799,2]
[313846282,1707750641452,-500.0,0.00022799,2]
[313846283,1707750641461,-500.0,0.00022799,2]
[313846284,1707750641470,-500.0,0.00022799,2]
[313846285,1707750641482,-500.0,0.00022799,2]
[313846286,1707750641491,-500.0,0.00022799,2]
[313846287,1707750641501,-500.0,0.00022799,2]
[313846288,1707750641510,-500.0,0.00022799,2]
[313846289,1707750641520,-500.0,0.00022799,2]
[313846290,1707750641529,-500.0,0.00022799,2]
[313846291,1707750641538,-725.12,0.00022799,2]
[313846292,1707750641547,-500.0,0.00022799,2]
[313846293,1707750641557,-500.0,0.00022799,2]
[313846294,1707750641566,-500.0,0.00022799,2]
[313846295,1707750641575,-500.0,0.00022799,2]
[313846296,1707750641585,-500.0,0.00022799,2]
[313846297,1707750641595,-500.0,0.00022799,2]
[313846298,1707750641605,-500.0,0.00022799,2]
[313846299,1707750641615,-500.0,0.00022799,2]
[313846300,1707750641625,-500.0,0.00022799,2]
[313846301,1707750641634,-500.0,0.00022799,2]
[313846302,1707750641643,-500.0,0.00022799,2]
[313846303,1707750641652,-500.0,0.00022799,2]
[313846304,1707750641661,-500.0,0.00022799,2]
[313846305,1707750641671,-500.0,0.00022799,2]
[313846306,1707750641680,-500.0,0.00022799,2]
[313846307,1707750641690,-500.0,0.00022799,2]
[313846308,1707750641699,-500.0,0.00022799,2]
[313846309,1707750641707,-500.0,0.00022799,2]
[313846310,1707750641717,-500.0,0.00022799,2]
[313846311,1707750641728,-500.0,0.00022799,2]
[313846312,1707750641737,-500.0,0.00022799,2]
[313846313,1707750641747,-500.0,0.00022799,2]
[313846314,1707750641756,-500.0,0.00022799,2]
[313846315,1707750641766,-500.0,0.00022799,2]
[313846316,1707750641775,-500.0,0.00022799,2]
[313846317,1707750641784,-500.0,0.00022799,2]
[313846318,1707750641801,-500.0,0.00022799,2]
[313846319,1707750641814,-500.0,0.00022799,2]
[313846320,1707750641824,-500.0,0.00022799,2]
[313846321,1707750641833,-500.0,0.00022799,2]
[313846322,1707750641843,-946.58,0.00022799,2]
[313846323,1707750641852,-500.0,0.00022799,2]
[313846324,1707750641861,-500.0,0.00022799,2]
[313846325,1707750641871,-500.0,0.00022799,2]
[313846326,1707750641880,-523.85011355,0.00022799,2]
[313846327,1707750641889,-500.0,0.00022799,2]
[313846328,1707750641899,-500.0,0.00022799,2]
[313846329,1707750641908,-500.0,0.00022799,2]
[313846330,1707750641918,-500.0,0.00022799,2]
[313846331,1707750641927,-500.0,0.00022799,2]
[313846332,1707750641937,-500.0,0.00022799,2]
[313846333,1707750641947,-500.0,0.00022799,2]
[313846334,1707750641956,-500.0,0.00022799,2]
[313846335,1707750641966,-500.0,0.00022799,2]
[313846336,1707750641977,-500.0,0.00022799,2]
[313846337,1707750641988,-500.0,0.00022799,2]
[313846338,1707750641997,-500.0,0.00022799,2]
[313846339,1707750642007,-500.0,0.00022799,2]
[313846340,1707750642019,-500.0,0.00022799,2]
[313846341,1707750642029,-500.0,0.00022799,2]
[313846342,1707750642039,-181023.927,0.000228,2]
[313846343,1707750642049,-1714.4,0.000228,2]
[313846344,1707750642060,-165.77928802,0.000228,2]
[313846345,1707750642070,-54454.3107,0.000228,2]
[313846346,1707750642079,-6464.50931814,0.000228,2]
[313846347,1707750642090,-770.5244,0.000228,2]
[313846348,1707750642099,-179.2039707,0.000228,2]
[313846349,1707750642108,-186.84151723,0.000228,2]
[313846350,1707750642118,-21962.67038275,0.000228,2]
[313846351,1707750642127,-155.0,0.000228,2]
[313846352,1707750642137,-6464.50931806,0.00022809,2]
[313846353,1707750642147,-2000.0,0.00022813,2]
[313846354,1707750642156,-200.0,0.00022813,2]
[313846355,1707750642166,-463.17520999,0.00022814,2]
[313846356,1707750642175,-6464.50931806,0.00022818,2]
[313846357,1707750642185,-6464.50931806,0.00022827,2]
[313846358,1707750642195,-6464.50931806,0.00022836,2]
[313846359,1707750642205,-463.17520999,0.00022843,2]
[313846360,1707750642214,-6464.50931806,0.00022845,2]
[313846361,1707750642226,-6464.50931806,0.00022855,2]
[313846362,1707750642236,-6464.50931806,0.00022864,2]
[313846363,1707750642245,-463.17520999,0.00022871,2]
[313846364,1707750642255,-6464.50931806,0.00022873,2]
[313846365,1707750642265,-500.0,0.00022873,2]
[313846366,1707750642274,-500.0,0.00022873,2]
[313846367,1707750642284,-500.0,0.00022873,2]
[313846369,1707750642294,-500.0,0.00022873,2]
[313846372,1707750642303,-500.0,0.00022873,2]
[313846374,1707750642313,-500.0,0.00022873,2]
[313846375,1707750642322,-500.0,0.00022873,2]
[313846376,1707750642331,-500.0,0.00022873,2]
[313846377,1707750642341,-500.0,0.00022873,2]
[313846379,1707750642350,-500.0,0.00022873,2]
[313846382,1707750642359,-500.0,0.00022873,2]
[313846386,1707750642369,-152.42223752,0.00022873,2]
[313846389,1707750642378,-500.0,0.00022873,2]
[313846392,1707750642389,-500.0,0.00022873,2]
[313846395,1707750642399,-500.0,0.00022873,2]
[313846398,1707750642409,-500.0,0.00022873,2]
[313846400,1707750642419,-500.0,0.00022873,2]
[313846402,1707750642429,-500.0,0.00022873,2]
[313846405,1707750642440,-500.0,0.00022873,2]
[313846408,1707750642450,-500.0,0.00022873,2]
[313846410,1707750642461,-500.0,0.00022873,2]
[313846412,1707750642471,-1029.26,0.00022873,2]
[313846414,1707750642486,-500.0,0.00022873,2]
[313846416,1707750642496,-500.0,0.00022873,2]
[313846418,1707750642506,-500.0,0.00022873,2]
[313846420,1707750642515,-500.0,0.00022873,2]
[313846422,1707750642524,-500.0,0.00022873,2]
[313846424,1707750642534,-625.99029333,0.00022873,2]
[313846425,1707750642543,-500.0,0.00022873,2]
[313846427,1707750642553,-500.0,0.00022873,2]
[313846429,1707750642562,-594.83,0.00022873,2]
[313846432,1707750642572,-6464.50931806,0.00022882,2]
[313846433,1707750642581,-217.70200193,0.0002289,2]
[313846436,1707750642590,-6464.50931806,0.00022891,2]
[313846438,1707750642600,-63450.68699664,0.00022897,2]
[313846440,1707750642609,-289.73142306,0.00022898,2]
[313846442,1707750642618,-500.0,0.00022899,2]
[313846444,1707750642627,-500.0,0.00022899,2]
[313846446,1707750642637,-500.0,0.00022899,2]
[313846448,1707750642647,-500.0,0.00022899,2]
[313846450,1707750642656,-574.17,0.00022899,2]
[313846452,1707750642666,-500.0,0.00022899,2]
[313846454,1707750642675,-500.0,0.00022899,2]
[313846456,1707750642684,-2196.49267877,0.000229,2]
[313846458,1707750642693,-94231.77647325,0.000229,3]
[313846483,1707750643058,-818.26057678,0.000229,3]
[313846484,1707750643070,-485.80288671,0.000229,3]
[313846485,1707750643099,-570.29031516,0.00022797,2]
[313846486,1707750643109,-26.44128699,0.00022799,2]
[313846487,1707750643120,-473.55871301,0.00022799,2]
[313846488,1707750643130,-7160.59174156,0.000229,3]
[313846489,1707750643145,-9504.49625909,0.000229,3]
[313846490,1707750643156,-604.4559318,0.000229,3]
[313846491,1707750643168,-730.39655596,0.000229,3]
[313846492,1707750643196,-11320.64840003,0.000229,3]
[313846493,1707750643207,-309.0536283,0.000229,3]
[313846494,1707750643219,-2500.2,0.000229,3]
[313846495,1707750643233,-1350.33,0.000229,3]
[313846496,1707750643244,-624.813,0.000229,3]
[313846497,1707750643264,-8914.15624746,0.000229,3]
[313846498,1707750643276,-15404.67228134,0.000229,3]
[313846499,1707750643822,-158.20297703,0.00022769,2]
[313846500,1707750643832,-500.0,0.00022798,2]
[313846501,1707750643841,-500.0,0.00022798,2]
[313846502,1707750643851,-500.0,0.00022798,2]
[313846503,1707750643860,-500.0,0.00022798,2]
[313846504,1707750643869,-500.0,0.00022799,2]
[313846505,1707750643879,-158.20297703,0.000228,2]
[313846506,1707750643888,-570.29031516,0.00022849,2]
[313846507,1707750643897,-6407.65333078,0.000229,3]
[313846508,1707750643908,-49381.00610142,0.000229,3]
[313846509,1707750643920,-50446.74498749,0.000229,3]
[313846510,1707750643931,-1268.3571268,0.000229,3]
[313846511,1707750643942,-976.559396,0.000229,3]
[313846512,1707750643954,-2404519.36872105,0.000229,3]
[313846513,1707750643963,-6464.50931806,0.000229,2]
[313846514,1707750643974,-1199.66,0.000229,2]
[313846515,1707750643990,-463.17520999,0.000229,2]
[313846516,1707750644000,-170.98,0.000229,2]
[313846517,1707750644009,-564.63806203,0.00022913,2]
[313846518,1707750644019,-1911.90542998,0.00022913,2]
[313846519,1707750644031,-185.41552769,0.00022913,2]
[313846520,1707750644040,-264.70440518,0.00022913,2]
[313846521,1707750644049,-456.94674192,0.00022914,2]
[313846522,1707750644059,-243.49617985,0.00022914,2]
[313846523,1707750644069,-775.13806544,0.00022914,2]
[313846524,1707750644078,-3289.09678362,0.00022914,2]
[313846525,1707750644089,-959.57323446,0.00022914,2]
[313846526,1707750644103,-390.58352314,0.00022915,2]
[313846527,1707750644113,-33643.65090597,0.00022915,2]
[313846528,1707750644122,-500.0,0.00022915,2]
[313846529,1707750644131,-500.0,0.00022915,2]
[313846530,1707750644141,-500.0,0.00022915,2]
[313846531,1707750644151,-500.0,0.00022915,2]
[313846532,1707750644161,-500.0,0.00022915,2]
[313846533,1707750644170,-500.0,0.00022915,2]
[313846534,1707750644180,-500.0,0.00022915,2]
[313846535,1707750644191,-500.0,0.00022915,2]
[313846536,1707750644202,-500.0,0.00022915,2]
[313846537,1707750644212,-500.0,0.00022915,2]
[313846538,1707750644222,-500.0,0.00022915,2]
[313846539,1707750644236,-500.0,0.00022915,2]
[313846540,1707750644245,-500.0,0.00022915,2]
[313846541,1707750644255,-500.0,0.00022915,2]
[313846542,1707750644265,-500.0,0.00022915,2]
[313846543,1707750644274,-500.0,0.00022915,2]
[313846544,1707750644284,-284.36494011,0.00022915,2]
[313846545,1707750644293,-500.0,0.00022915,2]
[313846546,1707750644304,-500.0,0.00022915,2]
[313846547,1707750644313,-500.0,0.00022915,2]
[313846548,1707750644323,-500.0,0.00022915,2]
[313846549,1707750644333,-500.0,0.00022915,2]
[313846550,1707750644342,-500.0,0.00022915,2]
[313846551,1707750644351,-500.0,0.00022915,2]
[313846552,1707750644361,-500.0,0.00022915,2]
[313846553,1707750644374,-500.0,0.00022915,2]
[313846554,1707750644384,-500.0,0.00022915,2]
[313846555,1707750644394,-500.0,0.00022915,2]
[313846556,1707750644404,-500.0,0.00022915,2]
[313846557,1707750644414,-500.0,0.00022915,2]
[313846558,1707750644424,-500.0,0.00022915,2]
[313846559,1707750644433,-500.0,0.00022915,2]
[313846560,1707750644443,-500.0,0.00022915,2]
[313846561,1707750644452,-500.0,0.00022915,2]
[313846562,1707750644462,-500.0,0.00022915,2]
[313846563,1707750644472,-500.0,0.00022915,2]
[313846564,1707750644483,-500.0,0.00022915,2]
[313846565,1707750644493,-500.0,0.00022915,2]
[313846566,1707750644502,-500.0,0.00022915,2]
[313846567,1707750644512,-500.0,0.00022915,2]
[313846568,1707750644521,-500.0,0.00022915,2]
[313846569,1707750644531,-488.07644387,0.00022915,2]
[313846570,1707750644540,-500.0,0.00022915,2]
[313846571,1707750644550,-500.0,0.00022915,2]
[313846572,1707750644560,-500.0,0.00022915,2]
[313846573,1707750644570,-500.0,0.00022915,2]
[313846574,1707750644580,-500.0,0.00022915,2]
[313846575,1707750644589,-500.0,0.00022915,2]
[313846576,1707750644599,-500.0,0.00022915,2]
[313846577,1707750644609,-500.0,0.00022915,2]
[313846578,1707750644619,-500.0,0.00022915,2]
[313846579,1707750644629,-500.0,0.00022915,2]
[313846580,1707750644639,-500.0,0.00022915,2]
[313846581,1707750644648,-500.0,0.00022915,2]
[313846582,1707750644658,-500.0,0.00022915,2]
[313846583,1707750644667,-500.0,0.00022915,2]
[313846584,1707750644677,-583.9778628,0.00022915,2]
[313846585,1707750644688,-18401.73479511,0.00022916,2]
[313846586,1707750644699,-156.21869345,0.00022916,2]
[313846587,1707750644709,-167.8883481,0.00022916,2]
[313846588,1707750644719,-1183.68414788,0.00022916,2]
[313846589,1707750644732,-179.32698187,0.00022916,2]
[313846590,1707750644742,-2147.9486642,0.00022916,2]
[313846591,1707750644754,-7185.2916065,0.00022916,2]
[313846592,1707750644764,-204.02044638,0.00022916,2]
[313846593,1707750644774,-231174.87736424,0.00022916,2]
[313846594,1707750644794,-4963.49662326,0.00022916,2]
[313846595,1707750644806,-639.05139847,0.00022916,2]
[313846596,1707750644818,-42528.54768282,0.00022916,2]
[313846597,1707750644829,-2147.392287,0.00022916,2]
[313846598,1707750644841,-2434.7397,0.00022916,2]
[313846599,1707750644853,-380.87044392,0.00022916,2]
[313846600,1707750644864,-60379.2753551,0.00022916,2]
[313846601,1707750644920,-3076.29308405,0.00022916,2]
[313846602,1707750644932,-695.48500034,0.00022916,2]
[313846603,1707750644943,-13556.4588,0.00022916,2]
[313846604,1707750644964,-1958.853,0.00022916,2]
[313846605,1707750644984,-4227.0833507,0.00022916,2]
[313846606,1707750645196,-724.41329783,0.00022916,2]
[313846607,1707750645209,-2048.20647562,0.00022916,2]
[313846608,1707750645223,-10327.46785243,0.00022916,2]
[313846609,1707750645242,-2444.34597488,0.00022916,2]
[313846611,1707750645272,-570.29031516,0.000229,2]
[313846612,1707750645282,-231.70968484,0.00022916,2]
[313846613,1707750645299,-111506.89158158,0.00022916,2]
[313846614,1707750645309,-526.09306064,0.00022916,2]
[313846615,1707750645319,-156.15106252,0.00022916,2]
[313846616,1707750645329,-303.81871591,0.00022916,2]
[313846617,1707750645338,-157.63736441,0.00022916,2]
[313846618,1707750645348,-399.80935983,0.00022917,2]
[313846619,1707750645358,-500.0,0.00022917,2]
[313846620,1707750645368,-526.82007562,0.00022917,2]
[313846621,1707750645377,-500.0,0.00022917,2]
[313846622,1707750645387,-500.0,0.00022917,2]
[313846623,1707750645397,-508.15239736,0.00022917,2]
[313846624,1707750645407,-533.21645562,0.00022917,2]
[313846625,1707750645416,-549.638489,0.00022917,2]
[313846626,1707750645426,-500.0,0.00022917,2]
[313846627,1707750645436,-500.0,0.00022917,2]
[313846628,1707750645445,-500.0,0.00022917,2]
[313846629,1707750645455,-500.0,0.00022917,2]
[313846630,1707750645464,-500.0,0.00022917,2]
[313846631,1707750645476,-500.0,0.00022917,2]
[313846632,1707750645485,-500.0,0.00022917,2]
[313846633,1707750645494,-500.0,0.00022917,2]
[313846634,1707750645503,-500.0,0.00022917,2]
[313846635,1707750645513,-396.06740919,0.00022917,2]
[313846636,1707750645522,-500.0,0.00022917,2]
[313846637,1707750645531,-500.0,0.00022917,2]
[313846638,1707750645541,-500.0,0.00022917,2]
[313846639,1707750645550,-500.0,0.00022917,2]
[313846640,1707750645559,-500.0,0.00022917,2]
[313846641,1707750645569,-385.19931025,0.00022917,2]
[313846642,1707750645579,-500.0,0.00022917,2]
[313846643,1707750645588,-500.0,0.00022917,2]
[313846644,1707750645598,-500.0,0.00022917,2]
[313846645,1707750645607,-387.37261925,0.00022917,2]
[313846646,1707750645616,-500.0,0.00022917,2]
[313846647,1707750645626,-500.0,0.00022917,2]
[313846648,1707750645636,-407.44470297,0.00022917,2]
[313846649,1707750645646,-500.0,0.00022917,2]
[313846650,1707750645656,-500.0,0.00022917,2]
[313846651,1707750645666,-500.0,0.00022917,2]
[313846652,1707750645675,-151.69,0.00022917,2]
[313846653,1707750645685,-500.0,0.00022917,2]
[313846654,1707750645695,-500.0,0.00022917,2]
[313846655,1707750645705,-379.36067088,0.00022917,2]
[313846656,1707750645715,-519.42283894,0.00022917,2]
[313846657,1707750645727,-500.0,0.00022917,2]
[313846658,1707750645738,-500.0,0.00022917,2]
[313846659,1707750645747,-500.0,0.00022917,2]
[313846660,1707750645757,-371.05,0.00022917,2]
[313846661,1707750645766,-500.0,0.00022917,2]
[313846662,1707750645775,-500.0,0.00022917,2]
[313846663,1707750645784,-500.0,0.00022917,2]
[313846664,1707750645793,-500.0,0.00022917,2]
[313846665,1707750645803,-508.62634312,0.00022917,2]
[313846666,1707750645812,-500.0,0.00022917,2]
[313846667,1707750645821,-500.0,0.00022917,2]
[313846668,1707750645831,-500.0,0.00022917,2]
[313846669,1707750645840,-500.0,0.00022917,2]
[313846670,1707750645850,-500.0,0.00022917,2]
[313846671,1707750645859,-500.0,0.00022917,2]
[313846672,1707750645868,-500.0,0.00022917,2]
[313846673,1707750645878,-500.0,0.00022917,2]
[313846674,1707750645888,-500.0,0.00022917,2]
[313846675,1707750645897,-194.17118621,0.00022917,2]
[313846676,1707750645906,-500.0,0.00022917,2]
[313846677,1707750645915,-500.0,0.00022917,2]
[313846678,1707750645924,-500.0,0.00022917,2]
[313846679,1707750645933,-500.0,0.00022917,2]
[313846680,1707750645943,-500.0,0.00022917,2]
[313846681,1707750645952,-500.0,0.00022917,2]
[313846682,1707750645961,-357.62192202,0.00022917,2]
[313846683,1707750645971,-500.0,0.00022917,2]
[313846684,1707750645986,-500.0,0.00022917,2]
[313846685,1707750645996,-500.0,0.00022917,2]
[313846686,1707750646006,-500.0,0.00022917,2]
[313846687,1707750646017,-500.0,0.00022917,2]
[313846688,1707750646027,-500.0,0.00022917,2]
[313846689,1707750646036,-500.0,0.00022917,2]
[313846690,1707750646045,-500.0,0.00022917,2]
[313846691,1707750646055,-500.0,0.00022917,2]
[313846692,1707750646064,-500.0,0.00022917,2]
[313846693,1707750646368,-500.0,0.00022917,2]
[313846694,1707750646378,-500.0,0.00022917,2]
[313846695,1707750646387,-500.0,0.00022917,2]
[313846696,1707750646397,-500.0,0.00022917,2]
[313846697,1707750646407,-150.5,0.0002295,2]
[313846698,1707750646416,-3673.66627797,0.0002296,2]
[313846699,1707750646425,-13320.81839998,0.0002299,2]
[313846700,1707750646434,-1848.93218142,0.0002299,2]
[313846701,1707750646443,-254.92980136,0.00022999,2]
[313846702,1707750646452,-354.91784419,0.00022999,2]
[313846703,1707750646461,-576.41077847,0.00022999,2]
[313846704,1707750646470,-396.41112008,0.00022999,2]
[313846705,1707750646482,-280.70494785,0.00022999,2]
[313846706,1707750646491,-150.0,0.00022999,2]
[313846707,1707750646501,-150.0,0.00022999,2]
[313846708,1707750646510,-150.0,0.00022999,2]
[313846709,1707750646519,-150.0,0.00022999,2]
[313846710,1707750646529,-316199.46989221,0.00023,2]
[313846711,1707750646542,-683862.09610284,0.00023,2]
[313846712,1707750646552,-508.05418228,0.00023,3]
[313846713,1707750646561,-5406753.90834609,0.00023,2]
[313846714,1707750646571,-2153265.30900869,0.00023,2]
[313846715,1707750646582,-14979.43354112,0.00023,2]
[313846716,1707750646593,-23480.5013262,0.00023,2]
[313846717,1707750646609,-21739.71955109,0.00023,2]
[313846718,1707750646620,-2940.03496643,0.00023,2]
[313846732,1707750647688,-1440.62529151,0.00022797,2]
[313846733,1707750647699,-500.0,0.00022798,2]
[313846734,1707750647709,-500.0,0.00022799,2]
[313846735,1707750647719,-377264.779312,0.00023,2]
[313846736,1707750647734,-536.3057155,0.00023,2]
[313846737,1707750647841,-3289.09678362,0.00023,2]
[313846738,1707750647853,-689.17485866,0.00023,2]
[313846739,1707750647864,-990.27060731,0.00023,2]
[313846740,1707750647876,-505.40595551,0.00023,2]
[313846741,1707750647898,-55929.30600202,0.00023,2]
[313846743,1707750647909,-2254.9442776,0.00023,2]
[313846744,1707750647921,-1000.94728167,0.00023,2]
[313846745,1707750647936,-815.93806979,0.00023,2]
[313846746,1707750647951,-20388.30320343,0.00023,2]
[313846747,1707750648009,-8554.22597162,0.00023,2]
[313846748,1707750648022,-1261.04999999,0.00023,2]
[313846749,1707750648034,-5136.6299452,0.00023,2]
[313846750,1707750648045,-13277.38991971,0.00023,2]
[313846751,1707750648806,1102.30328697,0.00021915,2]
[313846752,1707750650196,19064.22099477,0.00021915,2]
[313846753,1707750652042,6114.15975207,0.00021915,2]
[313846754,1707750654403,823.80776134,0.00021915,2]
[313846755,1707750655174,891.48243708,0.00021915,2]
[313846756,1707750658106,258.38085557,0.00021915,2]
[313846757,1707750661065,450.26738893,0.00022308,2]
[313846758,1707750661984,741.02419585,0.00021848,2]
[313846759,1707750670698,2885.12773953,0.00021915,2]
[313846760,1707750672033,3464.20492425,0.00021915,2]
[313846761,1707750694246,500.0,0.00022334,2]
[313846762,1707750707287,-2000.0,0.00022475,2]
[313846763,1707750707308,-19996.54012799,0.00022569,2]
[313846764,1707750707328,-497.29265858,0.00022569,2]
[313846765,1707750707348,-10244.5452,0.00022698,2]
[313846766,1707750707377,-1571.3251,0.00022698,2]
[313846767,1707750707397,-1000.0,0.00022699,2]
[313846768,1707750707419,-5000.0,0.00022699,2]
[313846769,1707750707440,-9796.71408564,0.00022797,2]
[313846770,1707750707459,-347.95904014,0.00022797,2]
[313846771,1707750707479,-156.00479395,0.00022797,2]
[313846772,1707750707499,-424.82864697,0.00022797,2]
[313846773,1707750707519,-710.4818226,0.00022797,2]
[313846774,1707750707541,-234.49046886,0.00022797,2]
[313846775,1707750707561,-512.16,0.00022798,2]
[313846776,1707750707587,-240.31332408,0.00022798,2]
[313846777,1707750707607,-500.0,0.00022798,2]
[313846778,1707750707628,-500.0,0.00022798,2]
[313846779,1707750707648,-500.0,0.00022798,2]
[313846780,1707750707669,-500.0,0.00022798,2]
[313846781,1707750707689,-500.0,0.00022798,2]
[313846782,1707750707709,-500.0,0.00022798,2]
[313846783,1707750707730,-500.0,0.00022798,2]
[313846784,1707750707750,-500.0,0.00022798,2]
[313846785,1707750707994,-500.0,0.00022798,2]
[313846786,1707750708015,-488.62,0.00022798,2]
[313846787,1707750708041,-500.0,0.00022798,2]
[313846788,1707750708062,-500.0,0.00022798,2]
[313846789,1707750708083,-500.0,0.00022798,2]
[313846790,1707750708105,-818.01,0.00022798,2]
[313846791,1707750708126,-528.28,0.00022798,2]
[313846792,1707750708147,-814.97,0.00022798,2]
[313846793,1707750708172,-658.52,0.00022798,2]
[313846794,1707750708194,-500.0,0.00022798,2]
[313846795,1707750708224,-500.0,0.00022798,2]
[313846796,1707750708250,-500.0,0.00022798,2]
[313846797,1707750708274,-500.0,0.00022798,2]
[313846798,1707750708300,-500.0,0.00022798,2]
[313846799,1707750708324,-500.0,0.00022798,2]
[313846800,1707750708348,-500.0,0.00022798,2]
[313846801,1707750708370,-536.17,0.00022798,2]
[313846802,1707750708395,-583.06,0.00022798,2]
[313846803,1707750708418,-500.0,0.00022798,2]
[313846804,1707750708440,-500.0,0.00022798,2]
[313846805,1707750708462,-500.0,0.00022798,2]
[313846806,1707750708484,-500.0,0.00022798,2]
[313846807,1707750708505,-500.0,0.00022799,2]
[313846808,1707750708531,-500.0,0.00022799,2]
[313846809,1707750708552,-500.0,0.00022799,2]
[313846810,1707750708574,-500.0,0.00022799,2]
[313846811,1707750708597,-500.0,0.00022799,2]
[313846812,1707750708619,-550.24,0.00022799,2]
[313846813,1707750708641,-500.0,0.00022799,2]
[313846814,1707750708663,-1224.08,0.00022799,2]
[313846815,1707750708684,-500.0,0.00022799,2]
[313846816,1707750708705,-500.0,0.00022799,2]
[313846817,1707750708726,-200.0,0.00022799,2]
[313846818,1707750708747,-500.0,0.00022799,2]
[313846819,1707750708768,-500.0,0.00022799,2]
[313846820,1707750708793,-500.0,0.00022799,2]
[313846821,1707750708816,-500.0,0.00022799,2]
[313846822,1707750708837,-500.0,0.00022799,2]
[313846823,1707750708857,-500.0,0.00022799,2]
[313846824,1707750708879,-500.0,0.00022799,2]
[313846825,1707750708901,-500.0,0.00022799,2]
[313846826,1707750708924,-826.56,0.00022799,2]
[313846827,1707750708945,-500.0,0.00022799,2]
[313846828,1707750708965,-571.60558899,0.000229,2]
[313846829,1707750708988,-330.76041322,0.00022972,2]
[313846830,1707750709009,-536.0468364,0.00022998,2]
[313846831,1707750709036,-155.4152334,0.00022998,2]
[313846832,1707750709062,-582.09710394,0.00022998,2]
[313846833,1707750709100,-804.56002391,0.00022998,2]
[313846834,1707750709125,-2159.882906,0.00022998,2]
[313846835,1707750709147,-399.94209826,0.00022999,2]
[313846836,1707750709168,-273.58141002,0.00022999,2]
[313846837,1707750709192,-304.6553694,0.00022999,2]
[313846838,1707750709215,-179.08983676,0.00022999,2]
[313846839,1707750709237,-181.32672317,0.00022999,2]
[313846840,1707750709260,-495445.45895708,0.00022999,2]
[313846841,1707750709286,-1929853.2571313,0.00023,2]
[313846842,1707750709310,-150.0,0.00023,2]
[313846843,1707750709333,-1296.69,0.00023,2]
[313846844,1707750709495,500.0,0.00022799,2]
[313846845,1707750710251,500.0,0.00022799,2]
[313846846,1707750711746,500.0,0.00022798,2]
[313846847,1707750712028,500.0,0.00022798,2]
[313846848,1707750712454,422.84282254,0.00022799,2]
[313846849,1707750712521,500.0,0.00022798,2]
[313846850,1707750713584,175.89,0.00022798,2]
[313846851,1707750715926,500.0,0.00022798,2]
[313846852,1707750716237,500.0,0.00022798,2]
[313846853,1707750718062,500.0,0.00022798,2]
[313846854,1707750718634,1638.67,0.00022798,2]
[313846855,1707750718853,500.0,0.00022799,2]